[Event "Italian-ch Teams-B 2022"]
[Site "Montesilvano"]
[Date "2022.04.19"]
[Round "1.1"]
[White "Mastrovasilis, Dimitrios"]
[Black "Fier, Alexandr"]
[Result "0-1"]
[ECO "B62"]
[WhiteElo "2618"]
[BlackElo "2583"]
[Annotator "TA"]
[PlyCount "46"]
[EventDate "2022.04.19"]
[EventType "team-tourn"]
[EventCountry "ITA"]
[SourceTitle "playchess.com"]
[Source "ChessBase"]
[SourceQuality "1"]
[TimeControl "40/5400+30:1800+30"]

{[%evp 12,46,37,0,40,27,28,22,26,30,20,19,27,27,28,21,45,20,30,24,29,23,28,25,25,25,22,14,12,25,31,-434,-437,-2771,-2459,-29983,-29984]} 1. e4 {[%emt 0:00:05]} c5 {[%emt 0:00:05]} 2. Nf3 {[%emt 0:00:09]} Nc6 {[%emt 0:00:05]} 3. d4 {[%emt 0:00:16]} cxd4 {[%emt 0:00:04]} 4. Nxd4 {[%emt 0:00:07]} Nf6 {[%emt 0:00:03]} 5. Nc3 {[%emt 0:00:10]} d6 {[%emt 0:00:04]} 6. Bg5 {[%emt 0:00:22]} e6 {[%emt 0:00:04]} 7. Qd3 {[%emt 0:00:26]} Bd7 {[%emt 0:00:59] B62: Sicilian: Richter-Rauzer: 6...e6: Unusual White 7th moves.} 8. Ndb5 {[%emt 0:01:06] 0-0-0 is the strong threat. is more profitable than 8.0-0-0 at the moment.} Nb4 {[%emt 0:01:03]} 9. Qd1 {[%emt 0:00:21]} Qb8 {[%emt 0:00:19] The position is equal.} 10. Bf4 {[%emt 0:01:11][%cal Rb5d6]} e5 {[%emt 0:00:04]} 11. Bg5 {[%emt 0:00:18] Strongly threatening a3.} a6 {[%emt 0:00:05]} 12. Na3 {[%emt 0:02:20]} b5 {[%emt 0:02:09]} 13. Bxf6 {[%emt 0:00:40]} gxf6 {[%emt 0:00:04]} 14. Nab1 $1 {[%emt 0:00:19] [#]} d5 $146 {[%emt 0:05:13]} ({Predecessor:} 14... Bg7 15. g3 O-O 16. a3 Nc6 17. Nd5 Ra7 18. Bg2 f5 19. exf5 Bxf5 20. O-O Kh8 {0-1 (32) Delchev,A (2500)-Shevchenko,K (2633) Struga 2021}) 15. Nxd5 {[%emt 0:35:59]} Nxd5 {[%emt 0:00:10]} 16. Qxd5 {[%emt 0:00:07]} Bb4+ {[%emt 0:00:46]} 17. c3 {[%emt 0:08:35]} Be6 {[%emt 0:00:24]} 18. Qd3 {[%emt 0:00:10]} ({But not} 18. Qc6+ $2 Ke7 19. cxb4 Rc8 20. Qxc8 Qxc8 $19) 18... Bc5 {[%emt 0:00:38]} 19. Be2 {[%emt 0:00:22]} Qb7 {[%emt 0:07:19]} 20. O-O $1 {[%emt 0:01:46]} Rg8 {[%emt 0:00:18]} 21. Nd2 $2 {[%emt 0:14:46][%mdl 8192]} (21. Kh1 $14 {stays ahead.}) 21... Rd8 $19 {[%emt 0:00:27]} 22. Qc2 {[%emt 0:00:10] [#]} (22. Qf3 $142 Rxd2 23. b4) 22... Rxd2 $1 {[%emt 0:00:47][%mdl 576] Remove Defender, Deflection} 23. Qxd2 {[%emt 0:00:18]} (23. Bf3 Rxc2) 23... Qxe4 {[%emt 0:00:04] Weighted Error Value: White=1.09/Black=0.03 (flawless)} 0-1

[Event "Italian-ch Teams-B 2022"]
[Site "Montesilvano"]
[Date "2022.04.19"]
[Round "1.1"]
[White "Dervishi, Erald"]
[Black "Dardha, Daniel"]
[Result "1/2-1/2"]
[ECO "B32"]
[WhiteElo "2511"]
[BlackElo "2541"]
[Annotator "TA"]
[PlyCount "96"]
[EventDate "2022.04.19"]
[EventType "team-tourn"]
[EventCountry "ITA"]
[SourceTitle "playchess.com"]
[Source "ChessBase"]
[SourceQuality "1"]
[TimeControl "40/5400+30:1800+30"]

{[%evp 10,96,29,23,29,22,27,26,49,33,70,67,73,64,58,60,63,65,81,39,90,28,75,66,54,53,58,51,72,64,59,69,80,66,65,55,85,67,118,90,83,54,64,50,98,0,0,-23,-19,-20,0,0,0,0,0,0,0,0,0,0,0,0,0,0,0,0,0,0,0,0,0,0,0,0,0,0,0,0,0,0,0,0,0,0,0,0,0,0,0]} 1. e4 {[%emt 0:00:03]} c5 {[%emt 0:00:09]} 2. Nf3 {[%emt 0:00:06][%cal Bg1f3,Bf3d4,Bd4b5][%mdl 32]} Nc6 {[%emt 0:00:12]} 3. d4 {[%emt 0:00:06]} cxd4 {[%emt 0:00:07]} 4. Nxd4 {[%emt 0:00:07]} e5 {[%emt 0:00:14]} 5. Nb5 {[%emt 0:00:44]} d6 {[%emt 0:00:12]} 6. c4 {[%emt 0:00:07]} g6 {[%emt 0:00:18] 6...Be6 is becoming the main line. B32: Sicilian: Löwenthal and Kalashnikov Variations.} 7. Be2 {[%emt 0:02:30]} Be6 {[%emt 0:02:58]} 8. O-O {[%emt 0:02:10]} Rc8 {[%emt 0:06:39] [#] White has an edge.} 9. b3 $146 {[%emt 0:04:43] Hoping for Ba3.} ({Predecessor:} 9. N1c3 a6 10. Na3 Bg7 11. Nc2 f5 12. exf5 gxf5 13. Bh5+ Kf8 14. Be2 Nf6 15. f4 {1-0 (40) Sjugirov,S (2680)-Swiercz,D (2656) Chess.com INT 2022}) 9... Nf6 {[%emt 0:05:21]} 10. Bg5 {[%emt 0:04:24]} h6 {[%emt 0:02:33]} 11. Bxf6 {[%emt 0:06:28] &Bianco is more active.} Qxf6 {[%emt 0:00:07]} 12. Nxd6+ {[%emt 0:00:09]} Bxd6 {[%emt 0:00:06]} 13. Qxd6 {[%emt 0:00:12]} Rd8 {[%emt 0:08:02]} 14. Qc5 {[%emt 0:08:18]} Nd4 {[%emt 0:07:57]} ({Black should try} 14... Qg5 $1 $14 15. Qe3 Nd4) 15. Bd1 {[%emt 0:01:18]} (15. Nc3 $16) 15... b6 {[%emt 0:10:56]} (15... Qg5 $11 {is more appropriate.}) 16. Qa3 $16 {[%emt 0:00:35]} Qg5 {[%emt 0:08:35] [#] aiming for ...Bh3.} 17. Kh1 {[%emt 0:02:44]} Qe7 {[%emt 0:03:58]} 18. Qc1 {[%emt 0:03:18]} Qg5 {[%emt 0:08:34]} 19. Nc3 {[%emt 0:00:51]} Qxc1 {[%emt 0:02:36]} 20. Rxc1 {[%emt 0:00:10]} Ke7 {[%emt 0:00:24]} 21. Bc2 {[%emt 0:10:17]} a6 {[%emt 0:09:26]} 22. Rfd1 {[%emt 0:06:39]} b5 {[%emt 0:02:54]} 23. Bd3 {[%emt 0:01:37][%cal Rc4b5]} Rb8 {[%emt 0:19:42]} (23... bxc4 $14 24. bxc4 (24. Bxc4 Bxc4 25. bxc4 Ke6 $16) 24... Rc8) 24. f4 {[%emt 0:07:48]} (24. Nd5+ {feels hotter.} Kd7 25. c5 g5 26. g3) 24... bxc4 {[%emt 0:00:00]} 25. Bxc4 {[%emt 0:01:35]} Bxc4 {[%emt 0:00:00]} 26. bxc4 {[%emt 0:00:09]} Ke6 {[%emt 0:00:00]} (26... Rhc8 $14 {deserves consideration.}) 27. Rd2 {[%emt 0:04:14]} (27. fxe5 $16 Kxe5 28. c5) 27... Rhc8 $1 $11 {[%emt 0:00:00]} 28. Nd1 {[%emt 0:06:11]} Rb4 {[%emt 0:00:00]} 29. c5 {[%emt 0:00:38] The position is equal.} Nb5 {[%emt 0:00:00]} 30. fxe5 {[%emt 0:17:47]} Rxe4 {[%emt 0:00:00][%cal Re4e1] [#]} 31. h3 {[%emt 0:01:30]} Rxe5 {[%emt 0:00:00]} 32. a4 {[%emt 0:00:27]} Re1+ {[%emt 0:00:00]} 33. Kh2 {[%emt 0:00:07]} Nc7 {[%emt 0:00:00]} 34. Rc4 {[%emt 0:00:43]} Nd5 {[%emt 0:00:00]} 35. Nc3 {[%emt 0:04:41]} Nxc3 {[%emt 0:00:52]} 36. Rxc3 {[%emt 0:00:10][%mdl 4096] Endgame KRR-KRR} Rc6 {[%emt 0:00:55] Against Rd6+} 37. Rcd3 {[%emt 0:01:42]} Re5 {[%emt 0:02:17]} 38. Rd6+ {[%emt 0:00:16]} Rxd6 {[%emt 0:00:06]} 39. Rxd6+ {[%emt 0:00:15] KR-KR} Ke7 {[%emt 0:00:05]} 40. Rxa6 {[%emt 0:00:26]} Rxc5 {[%emt 0:00:06]} 41. Ra7+ {[%emt 0:30:46]} Kf6 {[%emt 0:30:16]} 42. a5 {[%emt 0:00:35]} h5 {[%emt 0:00:47]} 43. h4 {[%emt 0:01:48]} Rc4 {[%emt 0:00:21]} 44. g3 {[%emt 0:00:12]} Rc2+ {[%emt 0:00:28]} 45. Kh3 {[%emt 0:01:54]} Ra2 {[%emt 0:00:49]} 46. a6 {[%emt 0:01:18]} Ke6 {[%emt 0:00:14]} 47. Ra8 {[%emt 0:00:00]} Kf5 {[%emt 0:00:00]} 48. Ra7 {[%emt 0:01:42]} ({Much worse is} 48. a7 Ra5 $17) 48... Ke5 {[%emt 0:05:14] Weighted Error Value: White=0.09 (flawless) /Black=0.11 (very precise)} 1/2-1/2

[Event "Italian-ch Teams-B 2022"]
[Site "Montesilvano"]
[Date "2022.04.19"]
[Round "1.1"]
[White "Rombaldoni, Denis"]
[Black "Lazic, Miroljub"]
[Result "1/2-1/2"]
[ECO "D02"]
[WhiteElo "2485"]
[BlackElo "2322"]
[Annotator "TA"]
[PlyCount "173"]
[EventDate "2022.04.19"]
[EventType "team-tourn"]
[EventCountry "ITA"]
[SourceTitle "playchess.com"]
[Source "ChessBase"]
[SourceQuality "1"]
[TimeControl "40/5400+30:1800+30"]

{[%evp 28,173,37,37,106,93,252,277,229,251,330,279,353,106,132,139,121,128,118,134,115,124,99,122,110,125,134,132,113,87,84,74,73,57,91,97,83,86,82,82,84,84,84,84,84,17,23,24,40,33,50,33,65,54,74,74,65,25,30,14,14,26,66,29,82,83,81,68,70,42,29,55,52,19,70,70,77,77,77,81,81,87,83,72,77,32,33,25,25,16,40,16,16,8,8,0,0,0,0,0,8,8,8,8,6414,5712,29977,16,23,23,25,33,40,40,68,0,68,0,0,0,0,0,0,0,0,0,0,0,0,0,0,0,0,0,0,0,0,0,0,0,0,0,0,0,0,0,0,0]} 1. Nf3 {[%emt 0:00:06]} d5 {[%emt 0:00:21]} 2. g3 {[%emt 0:00:06]} Nc6 {[%emt 0:01:51]} 3. d4 {[%emt 0:02:34]} Bf5 {[%emt 0:00:13]} 4. c3 {[%emt 0:02:09]} Qd7 {[%emt 0:01:50]} 5. b4 {[%emt 0:03:19]} a6 {[%emt 0:02:51]} 6. a4 {[%emt 0:27:20]} Bh3 {[%emt 0:01:01]} 7. Bxh3 {[%emt 0:00:35]} Qxh3 {[%emt 0:00:03]} 8. Bf4 {[%emt 0:03:47]} Qd7 {[%emt 0:09:50]} 9. Nbd2 {[%emt 0:01:46]} e6 {[%emt 0:01:10]} 10. b5 {[%emt 0:10:16]} Nce7 {[%emt 0:13:28]} 11. Ne5 {[%emt 0:05:50]} Qc8 {[%emt 0:00:32]} 12. c4 {[%emt 0:05:23]} Nf6 {[%emt 0:04:59]} 13. O-O {[%emt 0:06:06]} Ng6 {[%emt 0:01:01]} 14. Qb3 {[%emt 0:02:03]} Nxf4 {[%emt 0:08:13]} 15. gxf4 {[%emt 0:00:06]} dxc4 {[%emt 0:01:13]} (15... Bd6 $14) 16. Ndxc4 $16 {[%emt 0:01:46]} axb5 $2 {[%emt 0:11:40]} (16... Nd5 $16) 17. Qxb5+ $18 {[%emt 0:02:40]} (17. axb5 Rb8 $14) 17... c6 {[%emt 0:00:13]} 18. Qb3 {[%emt 0:00:08]} Ra7 {[%emt 0:00:40]} 19. Rfb1 {[%emt 0:01:45]} Be7 {[%emt 0:03:00]} 20. f5 $2 {[%emt 0:05:12]} (20. Qb6 $18 Qa8 21. Qc7) 20... O-O $16 {[%emt 0:03:44]} 21. Nb6 $1 {[%emt 0:04:37]} Qd8 {[%emt 0:01:59]} 22. fxe6 {[%emt 0:00:06]} Qxd4 {[%emt 0:00:08]} 23. exf7+ {[%emt 0:00:02]} Kh8 {[%emt 0:00:07]} 24. Qe6 $1 {[%emt 0:01:48]} Qd6 {[%emt 0:08:30]} 25. Qxd6 {[%emt 0:06:56]} Bxd6 {[%emt 0:00:04]} 26. Nbc4 {[%emt 0:00:08]} Bxe5 {[%emt 0:02:02]} 27. Nxe5 {[%emt 0:00:02]} g6 {[%emt 0:03:01]} 28. Rb3 {[%emt 0:02:30]} Ne4 {[%emt 0:01:52]} 29. a5 {[%emt 0:02:05]} Ng5 {[%emt 0:01:41]} 30. a6 {[%emt 0:02:01]} (30. Nd7 $5 {[%cal Rd7f8]} Rxf7 31. Nc5 $14) 30... Rxa6 {[%emt 0:05:00]} 31. Rxa6 {[%emt 0:00:05]} bxa6 {[%emt 0:00:02]} 32. Rb7 {[%emt 0:01:09]} Kg7 {[%emt 0:00:09]} 33. Ra7 {[%emt 0:00:18]} (33. Nxc6 Rxf7 34. Rb3 Rf6 $11) 33... c5 {[%emt 0:07:24]} 34. Rxa6 {[%emt 0:00:02]} Nxf7 {[%emt 0:00:06]} 35. Ra7 {[%emt 0:00:06]} Kg8 {[%emt 0:00:51]} 36. Nc4 {[%emt 0:00:51]} (36. Nd7 $16 Rc8 37. Nf6+ Kg7 38. Ne4) 36... Re8 {[%emt 0:01:16]} 37. Kf1 {[%emt 0:01:02]} Re4 {[%emt 0:01:35]} 38. Ne3 {[%emt 0:00:03]} Re5 {[%emt 0:02:33]} 39. Ng4 {[%emt 0:00:46]} Rf5 {[%emt 0:01:40]} 40. Rc7 {[%emt 0:00:27]} h5 {[%emt 0:00:40]} 41. Ne3 {[%emt 0:30:32]} Re5 {[%emt 0:30:19]} 42. Nc4 {[%emt 0:00:29]} Rd5 {[%emt 0:00:28]} 43. f3 {[%emt 0:01:55]} Rd1+ {[%emt 0:00:00]} 44. Kf2 {[%emt 0:00:00]} Rc1 {[%emt 0:00:00]} 45. Nd2 {[%emt 0:00:00]} ({Much worse is} 45. Rxc5 Nd6 $1 46. Rc6 Nxc4 $15) (45. Nb6 $5 {[%cal Rb6d5]}) 45... Rc2 {[%emt 0:00:00]} (45... Ng5 $11 {keeps the balance.}) 46. Ne4 $16 {[%emt 0:00:00]} c4 {[%emt 0:00:00]} 47. Nf6+ {[%emt 0:00:00]} Kf8 {[%emt 0:00:00]} 48. Nd7+ {[%emt 0:00:00]} Ke8 {[%emt 0:00:00]} 49. Nb6 {[%emt 0:00:00]} Nd6 {[%emt 0:00:00]} 50. Nd5 {[%emt 0:00:00]} Nb5 {[%emt 0:01:04]} ({Black should play} 50... Nf5 $11) 51. Rc8+ $1 $14 {[%emt 0:00:00]} Kf7 {[%emt 0:00:42]} 52. Ne3 {[%emt 0:00:00]} Rc1 {[%emt 0:01:47]} 53. Rxc4 {[%emt 0:00:00]} Rxc4 {[%emt 0:00:21]} 54. Nxc4 {[%emt 0:00:00]} g5 {[%emt 0:00:05]} 55. Ke3 {[%emt 0:01:28]} Kf6 {[%emt 0:00:19]} 56. Nd2 {[%emt 0:00:40]} Kf5 {[%emt 0:00:21]} 57. Ne4 {[%emt 0:00:53]} g4 $1 {[%emt 0:01:37]} 58. Ng3+ {[%emt 0:00:58]} Kg5 {[%emt 0:00:02]} 59. f4+ {[%emt 0:00:13]} Kg6 {[%emt 0:00:01]} 60. Ke4 {[%emt 0:02:42]} h4 {[%emt 0:00:36]} 61. Nf5 {[%emt 0:00:10]} Nc3+ {[%emt 0:01:40]} 62. Ke5 {[%emt 0:00:02]} Kh5 $1 {[%emt 0:00:35]} 63. e4 {[%emt 0:00:50]} Ne2 {[%emt 0:00:02]} 64. Ne3 {[%emt 0:00:54]} h3 $1 {[%emt 0:02:14]} 65. Nf1 {[%emt 0:01:09]} Ng1 $2 {[%emt 0:01:24][%mdl 8192]} (65... g3 $11 66. hxg3 Kg4) 66. Kf5 $18 {[%emt 0:01:17]} Nf3 {[%emt 0:00:09] [#]} 67. e5 $2 {[%emt 0:00:25]} (67. Ng3+ $1 {mates} Kh6 68. Kf6 Nh4 69. e5 Ng2 70. f5 Nf4 71. e6 Nd5+ 72. Kf7) 67... Nxh2 $1 $11 {[%emt 0:00:03]} 68. e6 {[%emt 0:01:17]} ({Reject} 68. Nxh2 g3 69. e6 (69. Nf3 $2 h2 $19) 69... gxh2 $17) 68... Nxf1 {[%emt 0:00:09]} 69. e7 {[%emt 0:00:00]} Kh4 {[%emt 0:00:55]} 70. e8=Q {[%emt 0:00:03]} h2 {[%emt 0:00:12]} 71. Qh8+ {[%emt 0:00:43]} Kg3 {[%emt 0:00:03]} 72. Kg5 {[%emt 0:00:54]} ({White should try} 72. Qa8 $1 $14 Kh3 73. Kg6) 72... Kg2 $11 {[%emt 0:00:54]} 73. Qa8+ {[%emt 0:00:30]} Kg1 $1 {[%emt 0:00:06]} 74. Qa7+ {[%emt 0:00:14]} Kg2 {[%emt 0:00:07]} 75. Qb7+ {[%emt 0:00:05]} Kg1 {[%emt 0:00:09]} 76. Qb6+ {[%emt 0:00:18]} Kg2 {[%emt 0:00:02]} 77. Qc6+ {[%emt 0:00:46]} Kg1 $1 {[%emt 0:00:07]} 78. Qc5+ {[%emt 0:00:09]} Kg2 {[%emt 0:00:02]} 79. Qd5+ {[%emt 0:00:40]} Kg1 $1 {[%emt 0:00:03]} 80. Qd4+ {[%emt 0:00:16]} Kg2 {[%emt 0:00:03]} 81. Qe4+ {[%emt 0:00:39]} Kg1 $1 {[%emt 0:00:02]} 82. Qd4+ {[%emt 0:01:12]} Kg2 {[%emt 0:00:03]} 83. Qe4+ {[%emt 0:00:10]} Kg1 $1 {[%emt 0:00:03]} 84. f5 {[%emt 0:00:07]} h1=Q {[%emt 0:00:16]} 85. Qxg4+ {[%emt 0:00:11]} Kf2 $1 {[%emt 0:00:21]} 86. f6 {[%emt 0:01:36]} Ne3 {[%emt 0:02:50]} 87. Qh4+ {[%emt 0:01:32]} 1/2-1/2

[Event "Italian-ch Teams-B 2022"]
[Site "Montesilvano"]
[Date "2022.04.19"]
[Round "1.1"]
[White "Caprio, Guido"]
[Black "Moroni, Luca Jr"]
[Result "0-1"]
[ECO "E18"]
[WhiteElo "2426"]
[BlackElo "2588"]
[Annotator "TA"]
[PlyCount "58"]
[EventDate "2022.04.19"]
[EventType "team-tourn"]
[EventCountry "ITA"]
[SourceTitle "playchess.com"]
[Source "ChessBase"]
[SourceQuality "1"]
[TimeControl "40/5400+30:1800+30"]

{[%evp 13,58,8,39,17,43,37,33,28,33,12,17,0,22,8,27,-79,-95,-104,-87,-89,-87,-83,-96,-90,-91,-96,-89,-107,-101,-104,-99,-102,-100,-110,-104,-115,-102,-123,-120,-121,-122,-143,-124,-364,-362,-394,-301]} 1. d4 {[%emt 0:00:08]} Nf6 {[%emt 0:00:03]} 2. c4 {[%emt 0:00:06]} e6 {[%emt 0:00:03]} 3. Nf3 {[%emt 0:00:20]} b6 {[%emt 0:00:04]} 4. g3 {[%emt 0:00:35]} Bb7 {[%emt 0:00:04]} 5. Bg2 {[%emt 0:00:05]} Be7 {[%emt 0:00:03]} 6. O-O {[%emt 0:00:52]} O-O {[%emt 0:00:05]} 7. Nc3 {[%emt 0:01:10]} Na6 {[%emt 0:00:04]} 8. Ne5 {[%emt 0:00:18] E18: Queen's Indian: Old Main Line (4 g3 Bb7 5 Bg2 Be7 6 0-0 0-0 7 Nc3).} Bxg2 {[%emt 0:00:06]} 9. Kxg2 {[%emt 0:00:04]} Qc8 {[%emt 0:00:08]} 10. f3 {[%emt 0:10:01] [#] White is slightly better.} Qb7 $146 {[%emt 0:01:21]} ({Predecessor:} 10... c6 11. e4 d6 12. Nd3 d5 13. cxd5 cxd5 14. e5 Nd7 15. Be3 Nb4 16. Nf2 a6 {½-½ (33) Belunek,V (2216)-Obsivac,J (2330) Ostrava 2018}) 11. Qa4 {[%emt 0:02:11]} c6 {[%emt 0:29:57]} 12. Bg5 {[%emt 0:05:21]} Rfd8 {[%emt 0:08:17]} 13. Rfd1 {[%emt 0:10:05]} Rab8 {[%emt 0:03:29]} 14. d5 {[%emt 0:06:42] [#]} (14. Ne4 $11) 14... Nc5 $1 $17 {[%emt 0:06:32][%cal Ba6c5,Bc5a4,Ba4c3][%mdl 32] White is now going downhill.} 15. dxc6 {[%emt 0:00:45]} Nxa4 {[%emt 0:02:29]} ({Reject} 15... Qc7 $6 16. Qc2 dxc6 17. Nd3 $11) 16. cxb7 {[%emt 0:00:03]} Nxc3 {[%emt 0:00:28]} 17. bxc3 {[%emt 0:00:04][%cal Oe5d7]} Rxb7 {[%emt 0:00:46]} 18. a4 {[%emt 0:11:31]} h6 {[%emt 0:04:51]} 19. Be3 {[%emt 0:00:48]} Rc8 {[%emt 0:01:56]} 20. a5 {[%emt 0:02:37]} d6 {[%emt 0:01:28]} 21. Nd3 {[%emt 0:00:16]} Rxc4 {[%emt 0:00:57]} 22. axb6 {[%emt 0:00:08]} axb6 {[%emt 0:00:10]} 23. Bd2 {[%emt 0:11:25]} Nd7 {[%emt 0:05:55]} 24. Rdb1 {[%emt 0:01:39]} d5 {[%emt 0:07:50]} 25. Rb5 {[%emt 0:00:37]} Bf6 {[%emt 0:01:01]} 26. Ra3 {[%emt 0:04:40]} Rbc7 {[%emt 0:02:09][%cal Rf6c3]} 27. Nb2 {[%emt 0:03:32]} R4c6 {[%emt 0:04:11][%cal Rf6c3]} ({Of course not} 27... Rxc3 $6 28. Bxc3 Bxc3 29. Ra8+ Kh7 30. Nd3 $11) 28. Na4 $2 {[%emt 0:08:44] [#]} (28. Rbb3 $17) 28... Ra7 $19 {[%emt 0:03:19]} 29. Rbb3 {[%emt 0:00:21]} b5 {[%emt 0:02:12] Weighted Error Value: White=0.30/Black=0.06 (flawless)} 0-1

[Event "Italian-ch Teams-B 2022"]
[Site "Montesilvano"]
[Date "2022.04.19"]
[Round "1.2"]
[White "Favaloro, Andrea"]
[Black "David, Alberto"]
[Result "0-1"]
[ECO "E33"]
[WhiteElo "2370"]
[BlackElo "2545"]
[Annotator "TA"]
[PlyCount "80"]
[EventDate "2022.04.19"]
[EventType "team-tourn"]
[EventCountry "ITA"]
[SourceTitle "playchess.com"]
[Source "ChessBase"]
[SourceQuality "1"]
[TimeControl "40/5400+30:1800+30"]

{[%evp 15,80,37,37,37,47,46,37,32,78,60,85,0,0,-26,-39,-39,-13,0,0,-84,-83,-83,-81,-94,-86,-98,-87,-118,-90,-124,-86,-124,-121,-123,-113,-254,-203,-211,-192,-217,-199,-272,-216,-266,-278,-323,-305,-331,-320,-324,-303,-427,-419,-425,-285,-342,-349,-375,-298,-345,-344,-456,-261,-459,-443,-763,-738]} 1. d4 {[%emt 0:00:09]} Nf6 {[%emt 0:00:14]} 2. c4 {[%emt 0:00:14]} e6 {[%emt 0:00:06]} 3. Nc3 {[%emt 0:00:15]} Bb4 {[%emt 0:00:07]} 4. Qc2 {[%emt 0:00:19]} Nc6 {[%emt 0:05:44]} 5. Nf3 {[%emt 0:00:18]} d6 {[%emt 0:00:10]} 6. Bd2 {[%emt 0:00:16]} O-O {[%emt 0:03:49]} 7. a3 {[%emt 0:00:36]} Bxc3 {[%emt 0:00:05]} 8. Bxc3 {[%emt 0:00:04]} Qe7 {[%emt 0:05:29]} 9. e4 {[%emt 0:01:00] E33: Nimzo-Indian: Classical: 4...Nc6.} e5 {[%emt 0:01:10]} 10. d5 {[%emt 0:00:06]} Nb8 {[%emt 0:01:02]} 11. Be2 {[%emt 0:00:28] White is slightly better.} Ne8 {[%emt 0:10:25]} (11... c6 $14 {is superior.}) 12. Nd2 {[%emt 0:08:45]} f5 {[%emt 0:02:05] [#]} 13. O-O-O $146 {[%emt 0:14:34]} (13. O-O $16) ({Predecessor:} 13. exf5 Bxf5 14. Bd3 Bxd3 15. Qxd3 Nd7 16. O-O-O Rxf2 17. Qg3 Rf8 18. Ne4 Nef6 19. Ng5 {0-1 (47) Kornyukov,A (2452)-Stevens,C (2260) Chess.com INT 2021}) 13... Qg5 $11 {[%emt 0:05:49]} 14. Bd3 {[%emt 0:41:02]} fxe4 {[%emt 0:03:52]} 15. Bxe4 {[%emt 0:00:10]} Nf6 {[%emt 0:00:23]} 16. h4 {[%emt 0:00:52]} Qh6 {[%emt 0:00:24]} 17. f3 {[%emt 0:03:56]} (17. Kb1 $11 {remains equal.}) 17... Nxe4 $17 {[%emt 0:01:08]} 18. Qxe4 {[%emt 0:00:06]} Nd7 {[%emt 0:12:05][%cal Bb8d7,Bd7c5,Bc5a4][%mdl 32]} (18... Bf5 19. Qe2 $11) 19. Qe2 {[%emt 0:12:00]} Nc5 {[%emt 0:01:38]} 20. b4 {[%emt 0:02:58]} Na4 {[%emt 0:01:16]} 21. Kc2 {[%emt 0:02:45]} Bf5+ {[%emt 0:13:47]} 22. Kb3 {[%emt 0:00:17] [#]} Qg6 $1 $36 {[%emt 0:00:52][%mdl 2048] Threatens to win with ...Bc2+. Black is on the roll. &Nero is more active.} 23. Rc1 {[%emt 0:03:06] [#] Prevents Bc2+.} (23. Kxa4 $2 Bc2+ 24. Nb3 a6 $19) (23. Ne4 Bxe4) 23... a5 $1 {[%emt 0:08:15]} 24. h5 {[%emt 0:01:16]} (24. Kxa4 Bc2+ 25. Nb3 axb4+ 26. Kxb4 c5+ 27. dxc6 {[#]} bxc6 $1 28. Bxe5 Rab8+ 29. Kc3 Rxb3+ 30. Kd2 dxe5 $19) (24. bxa5 Nc5+) 24... Qe8 {[%emt 0:00:14]} 25. Ra1 {[%emt 0:03:26] This move loses the game for White.} (25. bxa5 $17 Nc5+ 26. Ka2) 25... axb4 {[%emt 0:06:11]} 26. axb4 {[%emt 0:00:06]} b5 {[%emt 0:00:02]} 27. cxb5 {[%emt 0:00:48]} Nb6 {[%emt 0:01:03] Really sharp!} 28. Ne4 {[%emt 0:00:42]} (28. Kb2 {was necessary.}) 28... h6 {[%emt 0:17:05]} 29. Ra5 {[%emt 0:02:35]} Nxd5 {[%emt 0:00:00] And now ...Nf4 would win.} 30. Bd2 {[%emt 0:01:15]} Qf7 {[%emt 0:00:00]} (30... Nb6 $2 31. Kb2 $19) 31. Kb2 {[%emt 0:00:19]} Nb6 {[%emt 0:00:00]} 32. Rc1 {[%emt 0:01:04] Inhibits Nc4+.} Be6 {[%emt 0:00:00]} 33. Rxa8 {[%emt 0:00:35]} (33. Be1 $142) 33... Rxa8 $19 {[%emt 0:00:00]} 34. Ra1 {[%emt 0:00:04]} Rb8 {[%emt 0:00:00]} 35. Kc1 {[%emt 0:00:42]} Bc4 {[%emt 0:00:00]} ({Don't go for} 35... Qxh5 $2 36. Ra7 $19) 36. Qe3 {[%emt 0:00:33]} Bxb5 {[%emt 0:00:00] White must now prevent ...Bf1.} 37. Ra7 {[%emt 0:00:44][%cal Oe4d6]} Nc4 {[%emt 0:00:00]} ({Don't blunder} 37... Qxh5 $2 38. Rxc7 Ra8 39. Qxh6 (39. Qxb6 {gets mated.} Qh1+) 39... Qxh6 40. Bxh6 gxh6 41. Nxd6 $19) 38. Qb3 {[%emt 0:00:31]} Bc6 {[%emt 0:00:00]} (38... Qxh5 $142 {Hoping for ...Qh1+.} 39. Qd1 Qh2) 39. Nc3 $2 {[%emt 0:00:29]} (39. Nxd6 Nxd6 40. Qxf7+ Nxf7 41. Rxc7) 39... d5 {[%emt 0:00:00][%cal Bd6d5,Bd5d4][%mdl 32]} 40. Kd1 {[%emt 0:00:29]} (40. b5 $142 Bxb5 41. Nxb5 Qxh5 42. Ra4 Qh1+ 43. Kc2) 40... d4 {[%emt 0:00:00] Weighted Error Value: White=0.53/Black=0.21 (precise)} 0-1